bitfinex-derivatives/quotes_BTCF0:USTF0_20251103
["timestamp","ask_amount","ask_price","bid_price","bid_amount"]
[1762176352395,0.44348,107740.0,107730.0,0.04483409]
[1762176352800,0.56195213,107740.0,107730.0,0.04483409]
[1762176353489,0.56195213,107740.0,107730.0,0.01994]
[1762176353691,0.21138579,107750.0,107730.0,0.01994]
[1762176353892,0.01367,107780.0,107740.0,0.71127213]
[1762176354097,0.01367,107780.0,107770.0,0.0928059]
[1762176354098,0.05768,107780.0,107770.0,0.0928059]
[1762176354300,0.05768,107780.0,107770.0,0.76583803]
[1762176354508,0.05768,107780.0,107770.0,0.6473659]
[1762176354509,0.01367,107780.0,107770.0,0.6473659]
[1762176355001,0.03508,107790.0,107780.0,0.0927962]
[1762176355204,0.05768,107790.0,107780.0,0.4535962]
[1762176355391,0.05768,107790.0,107780.0,0.3608]
[1762176355798,0.17615213,107790.0,107770.0,0.6884]
[1762176355999,0.16209213,107780.0,107770.0,0.39892657]
[1762176356205,0.04362,107780.0,107770.0,0.39064642]
[1762176356501,0.16609213,107780.0,107770.0,0.38664642]
[1762176356701,0.16609213,107780.0,107770.0,0.001]
[1762176356702,0.16209213,107780.0,107770.0,0.001]
[1762176356901,0.39405213,107780.0,107770.0,0.001]
[1762176357103,0.16209213,107780.0,107770.0,0.4546047]
[1762176357402,0.04362,107780.0,107770.0,0.47945112]
[1762176357591,0.04362,107780.0,107770.0,0.48773127]
[1762176358104,0.04362,107780.0,107770.0,0.03412657]
[1762176358309,0.04362,107780.0,107770.0,0.02585997]
[1762176358504,0.52289213,107780.0,107770.0,0.02585997]
[1762176358699,0.04262,107770.0,107760.0,0.3608]
[1762176358894,0.16109213,107770.0,107760.0,0.41881046]
[1762176359099,0.16109213,107770.0,107760.0,0.39394864]
[1762176359403,0.03962,107770.0,107760.0,0.38566364]
[1762176359701,0.51889213,107770.0,107760.0,0.02486364]
[1762176359899,0.02205,107760.0,107750.0,0.03315228]
[1762176360104,0.13022213,107760.0,107740.0,0.39394864]
[1762176360308,0.13022213,107760.0,107740.0,0.3608]
[1762176360309,0.15909213,107750.0,107740.0,0.3608]
[1762176360508,0.04062,107750.0,107740.0,0.40426]
[1762176361407,0.04062,107750.0,107740.0,0.4970916]
[1762176361904,0.15809213,107750.0,107740.0,0.4970916]
[1762176362103,0.03962,107750.0,107740.0,0.4970916]
[1762176362299,0.03962,107750.0,107740.0,0.53024024]
[1762176362499,0.03962,107750.0,107740.0,0.43740864]
[1762176362810,0.04162,107750.0,107740.0,0.43940864]
[1762176363010,0.04162,107750.0,107740.0,0.39594864]
[1762176363212,0.52089213,107750.0,107740.0,0.002]
[1762176363513,0.75293213,107750.0,107740.0,0.002]
[1762176363807,0.05437,107740.0,107730.0,0.04908864]
[1762176364006,0.53364213,107740.0,107730.0,0.04908864]
[1762176364218,0.53364213,107740.0,107730.0,0.07184864]
[1762176364604,0.53364213,107740.0,107730.0,0.16468864]
[1762176364809,0.05437,107740.0,107730.0,0.54781864]
[1762176365006,0.17284213,107740.0,107730.0,0.54781864]
[1762176365410,0.17384213,107740.0,107730.0,0.54781864]
[1762176366114,0.06437,107740.0,107730.0,0.54981864]
[1762176366311,0.06437,107740.0,107730.0,0.5995085]
[1762176366508,0.06437,107740.0,107730.0,0.56635986]
[1762176368007,0.06437,107740.0,107730.0,0.4616712]
[1762176368311,0.60403741,107740.0,107730.0,0.05118134]
[1762176368510,0.83607741,107740.0,107730.0,0.01794]
[1762176369815,0.84607741,107740.0,107730.0,0.01994]
[1762176371108,0.66721,107740.0,107730.0,0.01994]
[1762176371302,0.84607741,107740.0,107730.0,0.01994]
[1762176372704,0.05637,107720.0,107710.0,0.3608]
[1762176373010,0.05637,107720.0,107710.0,0.498748]
[1762176373713,0.06901676,107720.0,107710.0,0.498748]
[1762176374809,0.04362,107710.0,107700.0,0.39719367]
[1762176375014,0.04362,107710.0,107700.0,0.36395233]
[1762176375209,0.22248741,107710.0,107700.0,0.36395233]
[1762176375817,0.22148741,107710.0,107700.0,0.36395233]
[1762176376417,0.22148741,107710.0,107700.0,0.00415233]
[1762176376418,0.58228741,107710.0,107700.0,0.00415233]
[1762176376617,0.81440741,107710.0,107700.0,0.00415233]
[1762176377219,0.80940741,107710.0,107700.0,0.00415233]
[1762176377514,0.05637,107680.0,107670.0,0.51344568]
[1762176378414,0.05645841,107680.0,107670.0,0.51344568]
[1762176378824,0.04370841,107680.0,107670.0,0.51344568]
[1762176379117,0.05445841,107680.0,107670.0,0.51344568]
[1762176379712,0.05545841,107680.0,107670.0,0.02066938]
[1762176380012,0.23732582,107680.0,107670.0,0.14632188]
[1762176380212,0.46952582,107680.0,107670.0,0.03066938]
[1762176380412,0.23732582,107680.0,107670.0,0.14632188]
[1762176380714,0.23732582,107680.0,107670.0,0.16865188]
[1762176381103,0.04570841,107680.0,107670.0,0.52945188]
[1762176381710,0.05845841,107680.0,107670.0,0.52945188]
[1762176383619,0.04570841,107680.0,107670.0,0.52945188]
[1762176384529,0.00408841,107680.0,107670.0,0.52945188]
[1762176387326,0.00408841,107680.0,107670.0,0.56269322]
[1762176390328,0.00408841,107680.0,107670.0,0.56952322]
[1762176390725,0.06161841,107680.0,107670.0,0.56952322]
[1762176390918,0.06161841,107680.0,107670.0,0.53628188]
[1762176391629,0.04831841,107680.0,107670.0,0.53628188]
[1762176392324,0.04831841,107680.0,107670.0,0.52945188]
[1762176392827,0.22718582,107680.0,107670.0,0.50712188]
[1762176393421,0.45938582,107680.0,107670.0,0.03066938]
[1762176393617,0.82018582,107680.0,107670.0,0.03066938]
[1762176395430,0.83009741,107680.0,107670.0,0.02466938]
[1762176396524,0.83409741,107680.0,107670.0,0.01966938]
[1762176397120,0.65531841,107680.0,107670.0,0.01966938]
[1762176397431,0.84739741,107680.0,107670.0,0.01966938]
[1762176398129,0.84747298,107680.0,107670.0,0.01966938]
[1762176398422,0.84739741,107680.0,107670.0,0.01966938]
[1762176402926,0.05509,107670.0,107660.0,0.60864491]
[1762176403122,0.59483214,107670.0,107660.0,0.60864491]
[1762176403328,0.82703214,107670.0,107660.0,0.70154641]
[1762176403626,0.59483214,107670.0,107660.0,0.70154641]
[1762176403830,0.59483214,107670.0,107660.0,0.74786641]
[1762176404131,0.60783214,107670.0,107660.0,0.75186641]
[1762176404333,0.84003214,107670.0,107660.0,0.75186641]
[1762176404537,0.84003214,107670.0,107660.0,0.75286641]
[1762176404538,0.61083214,107670.0,107660.0,0.75286641]
[1762176404730,0.61083214,107670.0,107660.0,0.76633641]
[1762176404930,0.61083214,107670.0,107660.0,0.79957765]
[1762176405333,0.61083214,107670.0,107660.0,0.78610765]
[1762176405733,0.61083214,107670.0,107660.0,0.64688625]
[1762176406342,0.84295741,107670.0,107660.0,0.61364491]
[1762176407031,0.83995741,107670.0,107660.0,0.61264491]
[1762176407231,0.84695741,107670.0,107660.0,0.61364491]
[1762176408037,0.84604582,107670.0,107660.0,0.61364491]
[1762176408733,0.83404582,107670.0,107660.0,0.60964491]
[1762176408933,0.84904582,107670.0,107660.0,0.61364491]
[1762176410732,0.61684582,107670.0,107660.0,0.63684491]
[1762176412540,0.84904582,107670.0,107660.0,0.63684491]
[1762176412742,0.61684582,107670.0,107660.0,0.63684491]
[1762176413843,0.84904582,107670.0,107660.0,0.63684491]
[1762176414045,0.84904582,107670.0,107660.0,0.61364491]
[1762176414637,1.17204582,107670.0,107660.0,0.61364491]
[1762176414837,1.16715082,107670.0,107660.0,0.61364491]
[1762176415038,0.93495082,107670.0,107660.0,0.75204601]
[1762176415346,0.93495082,107670.0,107660.0,0.76482601]
[1762176415537,0.92409082,107670.0,107660.0,0.76482601]
[1762176416039,0.56329082,107670.0,107660.0,0.76482601]
[1762176416245,0.56329082,107670.0,107660.0,0.79806735]
[1762176416842,0.38442341,107670.0,107660.0,0.79806735]
[1762176417038,0.56329082,107670.0,107660.0,0.79806735]
[1762176417237,0.56329082,107670.0,107660.0,1.15886735]
[1762176417238,0.24029082,107670.0,107660.0,1.15886735]
[1762176417441,0.24029082,107670.0,107660.0,0.79806735]
[1762176417640,0.24029082,107670.0,107660.0,1.15886735]
[1762176417848,0.24029082,107670.0,107660.0,0.79806735]
[1762176417849,0.24020241,107670.0,107660.0,0.79806735]
[1762176418440,0.02208124,107670.0,107660.0,1.15886735]
[1762176418649,0.02208124,107670.0,107660.0,1.17531587]
[1762176419842,0.02208124,107670.0,107660.0,0.81451587]
[1762176420148,0.02208124,107670.0,107660.0,1.17531587]
[1762176421657,0.02208124,107670.0,107660.0,0.81451587]
[1762176421658,0.38288124,107670.0,107660.0,0.81451587]
[1762176422154,0.40617124,107670.0,107660.0,0.81451587]
[1762176423261,0.38288124,107670.0,107660.0,0.81451587]
[1762176423456,0.42804124,107670.0,107660.0,0.81451587]
[1762176423957,0.02208124,107670.0,107660.0,1.17531587]
[1762176424158,1.24e-06,107670.0,107660.0,1.19207518]
[1762176424661,1.24e-06,107670.0,107660.0,1.53138499]
[1762176426159,1.24e-06,107670.0,107660.0,1.76358499]
[1762176426364,1.24e-06,107670.0,107660.0,1.88225412]
[1762176426761,1.24e-06,107670.0,107660.0,1.88258204]
[1762176428563,1.24e-06,107670.0,107660.0,1.76391291]
[1762176429565,1.24e-06,107670.0,107660.0,1.68046601]
[1762176430357,1.24e-06,107670.0,107660.0,1.79913514]
[1762176431166,1.24e-06,107670.0,107660.0,1.86576832]
[1762176435070,1.24e-06,107670.0,107660.0,1.74709919]
[1762176436568,1.24e-06,107670.0,107660.0,1.89679919]
[1762176438379,1.24e-06,107670.0,107660.0,2.01546832]
[1762176438975,1.24e-06,107670.0,107660.0,2.03228204]
[1762176439177,1.24e-06,107670.0,107660.0,2.01542545]
[1762176439578,1.24e-06,107670.0,107660.0,2.03228204]
[1762176439779,1.24e-06,107670.0,107660.0,1.94883514]
[1762176439978,1.24e-06,107670.0,107660.0,2.06547767]
[1762176440980,1.24e-06,107670.0,107660.0,2.14868947]
[1762176441181,1.24e-06,107670.0,107660.0,2.03204694]
[1762176443080,1.24e-06,107670.0,107660.0,2.08204694]
[1762176444181,1.24e-06,107670.0,107660.0,1.93234694]
[1762176445276,1.24e-06,107670.0,107660.0,1.84913514]
[1762176447080,0.18972589,107720.0,107710.0,0.1369878]
[1762176447284,0.18972589,107720.0,107710.0,0.4977878]
[1762176447486,0.18972589,107720.0,107710.0,0.53108847]
[1762176448686,0.21572589,107720.0,107710.0,0.53508847]
[1762176449681,0.20572589,107720.0,107710.0,0.53508847]
[1762176449871,0.07414676,107720.0,107710.0,0.54784847]
[1762176450075,0.07414676,107720.0,107710.0,0.59779948]
[1762176450283,0.1879934,107720.0,107710.0,0.71164612]
[1762176451194,0.1879934,107720.0,107710.0,0.59779948]
[1762176451381,0.1879934,107720.0,107710.0,0.67834545]
[1762176452288,0.07414676,107720.0,107710.0,0.56449881]
[1762176453281,0.08414676,107720.0,107710.0,0.56549881]
[1762176453484,0.03864676,107720.0,107710.0,0.56549881]
[1762176454085,0.02864676,107720.0,107710.0,0.56449881]
[1762176454290,0.05631676,107720.0,107710.0,0.56549881]
[1762176454492,0.07852676,107720.0,107710.0,0.56549881]
[1762176455288,0.03464676,107720.0,107710.0,0.56549881]
[1762176455490,0.03464676,107720.0,107710.0,0.5155478]
[1762176455690,0.022,107720.0,107710.0,0.58214915]
[1762176457793,0.04367,107720.0,107710.0,0.58214915]
[1762176458197,0.05415125,107720.0,107710.0,0.58214915]
[1762176458694,0.03248125,107720.0,107710.0,0.58214915]
[1762176459290,0.05415125,107720.0,107710.0,0.58214915]
[1762176459795,0.05415125,107720.0,107710.0,0.5155478]
[1762176460285,0.03815125,107720.0,107710.0,0.57814915]
[1762176460486,0.04015125,107720.0,107710.0,0.58014915]
[1762176460998,0.03415125,107720.0,107710.0,0.58114915]
[1762176461493,0.03415125,107720.0,107710.0,0.5145478]
[1762176462689,0.03215125,107720.0,107710.0,0.5145478]
[1762176462893,0.03815125,107720.0,107710.0,0.5145478]
[1762176463597,0.03215125,107720.0,107710.0,0.5145478]
[1762176463896,0.03815125,107720.0,107710.0,0.5145478]
[1762176464894,0.06036125,107720.0,107710.0,0.5145478]
[1762176465699,0.006,107720.0,107710.0,0.5145478]
[1762176467084,0.04988,107720.0,107710.0,0.5145478]
[1762176467395,0.02767,107720.0,107710.0,0.5145478]
[1762176467597,0.04988,107720.0,107710.0,0.5145478]
[1762176468193,0.04988,107720.0,107710.0,0.58114915]
[1762176470694,0.04988,107720.0,107710.0,0.5145478]
[1762176472191,0.02767,107720.0,107710.0,0.5145478]
[1762176474199,0.02767,107720.0,107710.0,0.58114915]
[1762176474401,0.14151307,107720.0,107710.0,0.69499222]
[1762176477103,0.11984307,107720.0,107710.0,0.69499222]
[1762176477298,0.006,107720.0,107710.0,0.69499222]
[1762176477495,0.006,107720.0,107710.0,0.62839087]
[1762176477702,0.01367391,107730.0,107710.0,0.62839087]
[1762176477703,0.01367391,107730.0,107720.0,0.149539]
[1762176477905,0.17027307,107750.0,107740.0,0.05303]
[1762176478204,0.17027307,107750.0,107740.0,0.9115158]
[1762176478205,0.16776875,107750.0,107740.0,0.9115158]
[1762176478597,0.18082875,107750.0,107740.0,0.9115158]
[1762176479114,0.06698568,107750.0,107740.0,0.9115158]
[1762176479297,0.18082875,107750.0,107740.0,0.9115158]
[1762176480307,0.18482875,107750.0,107740.0,0.8791342]
[1762176480604,0.18482875,107750.0,107740.0,0.8700142]
[1762176480805,0.18482875,107750.0,107740.0,0.90340666]
[1762176481216,0.19282875,107750.0,107740.0,0.90540666]
[1762176481506,0.19282875,107750.0,107740.0,0.8720142]
[1762176481807,0.55362875,107750.0,107740.0,0.45177733]
[1762176481998,0.55362875,107750.0,107740.0,0.35779493]
[1762176483005,0.55362875,107750.0,107740.0,0.40786733]
[1762176483709,0.89951182,107750.0,107740.0,0.03639493]
[1762176484799,0.89951182,107750.0,107740.0,0.003]
[1762176485302,0.89951182,107750.0,107740.0,0.03639493]
[1762176485898,0.92437884,107750.0,107740.0,0.03639493]
[1762176486098,0.89951182,107750.0,107740.0,0.03639493]
[1762176487708,0.89951182,107750.0,107740.0,0.00139493]
[1762176488309,0.77303717,107750.0,107740.0,0.00139493]
[1762176490101,0.04979,107740.0,107730.0,0.0500724]
[1762176490305,0.51180149,107740.0,107730.0,0.0500724]
[1762176490605,0.51180149,107740.0,107730.0,0.0717424]
[1762176490906,0.51180149,107740.0,107730.0,0.1868225]
[1762176491112,0.51180149,107740.0,107730.0,0.0717424]
[1762176491312,0.52180149,107740.0,107730.0,0.0747424]
[1762176491503,0.52180149,107740.0,107730.0,0.0969824]
[1762176493410,0.52180149,107740.0,107730.0,0.1898225]
[1762176493610,0.52480149,107740.0,107730.0,0.1908225]
[1762176495308,0.16400149,107740.0,107730.0,0.1908225]
[1762176496407,0.16400149,107740.0,107730.0,0.2041825]
[1762176497505,0.16400149,107740.0,107730.0,0.1113424]
[1762176499207,0.16400149,107740.0,107730.0,0.2041825]
[1762176502510,0.16400149,107740.0,107730.0,0.1113424]
[1762176502911,0.16400149,107740.0,107730.0,0.2041825]
[1762176503515,0.16400149,107740.0,107730.0,0.1113424]
[1762176504824,0.16400149,107740.0,107730.0,0.2041826]
[1762176505517,0.15773149,107740.0,107730.0,0.5649826]
[1762176505819,0.15773149,107740.0,107730.0,0.5149102]
[1762176506817,0.15773149,107740.0,107730.0,0.56500952]
[1762176508325,0.15773149,107740.0,107730.0,0.5149102]
[1762176508520,0.15773149,107740.0,107730.0,0.58167418]
[1762176509327,0.11421149,107740.0,107730.0,0.58167418]
[1762176509521,0.11421149,107740.0,107730.0,0.5149102]
[1762176509722,0.11421149,107740.0,107730.0,0.58167418]
[1762176510129,0.11421149,107740.0,107730.0,0.5149102]
[1762176510830,0.15810149,107740.0,107730.0,0.5149102]
[1762176511630,0.13669149,107740.0,107730.0,0.5149102]
[1762176511832,0.15810149,107740.0,107730.0,0.5149102]
[1762176513930,0.11421149,107740.0,107730.0,0.5149102]
[1762176514631,0.11421149,107740.0,107730.0,0.58167418]
[1762176514927,0.013,107740.0,107730.0,0.58167418]
[1762176520734,0.01040568,107750.0,107740.0,0.147832]
[1762176520930,0.14510149,107760.0,107750.0,0.055]
[1762176521132,0.14510149,107760.0,107750.0,0.49924212]
[1762176521437,0.14510149,107760.0,107750.0,0.44917685]
[1762176521939,0.14510149,107760.0,107750.0,0.54200025]
[1762176522142,0.15550637,107760.0,107750.0,0.55868867]
[1762176522338,0.01040488,107760.0,107750.0,0.55868867]
[1762176522537,0.10421149,107770.0,107760.0,0.1478149]
[1762176522538,0.02548,107770.0,107760.0,0.1478149]
[1762176522738,0.003,107770.0,107760.0,0.87956017]
[1762176524139,0.01,107770.0,107760.0,0.88056017]
[1762176524333,0.06411612,107770.0,107760.0,0.88056017]
[1762176524531,0.16532761,107770.0,107760.0,0.8304949]
[1762176525146,0.16632761,107770.0,107760.0,0.8314949]
[1762176525447,0.06511612,107770.0,107760.0,0.8314949]
[1762176525649,0.16632761,107770.0,107760.0,0.8314949]
[1762176525946,0.16332761,107770.0,107760.0,0.8314949]
[1762176526730,0.16132761,107770.0,107760.0,0.8304949]
[1762176527744,0.13891761,107770.0,107760.0,0.8294949]
[1762176527950,0.16532761,107770.0,107760.0,0.8314949]
[1762176534446,0.16532761,107770.0,107760.0,0.4706943]
[1762176535347,0.16532761,107770.0,107760.0,0.8314943]
[1762176535651,0.12143761,107770.0,107760.0,0.88155957]
[1762176536252,0.02022612,107770.0,107760.0,0.88155957]
[1762176541148,0.12143761,107770.0,107760.0,0.88155957]
[1762176543859,0.41785,107800.0,107790.0,0.04475]
[1762176544055,0.43925171,107800.0,107790.0,0.04475]
[1762176544362,0.61451145,107800.0,107790.0,0.04475]
[1762176544556,0.1796632,107800.0,107790.0,0.1501893]
[1762176545360,0.17553539,107800.0,107790.0,0.1511893]
[1762176545959,0.18753539,107800.0,107790.0,0.1531893]
[1762176546962,0.2089443,107800.0,107790.0,0.1531893]
[1762176548366,0.20004406,107800.0,107790.0,0.1531893]
[1762176550471,0.0730239,107800.0,107790.0,0.1531893]
[1762176550770,0.18674406,107800.0,107790.0,0.1531893]
[1762176550961,0.20816071,107800.0,107790.0,0.1531893]
[1762176551468,0.33519087,107800.0,107790.0,0.0604]
[1762176551661,0.33519087,107800.0,107790.0,0.04775]
[1762176552170,0.22147071,107800.0,107790.0,0.1405396]
[1762176552967,0.33519087,107800.0,107790.0,0.04775]
[1762176553162,0.69599087,107800.0,107790.0,0.04775]
[1762176553557,0.69599087,107800.0,107790.0,0.02567]
[1762176554670,0.69599087,107800.0,107790.0,0.04775]
[1762176555259,0.69599087,107800.0,107790.0,0.1405396]
[1762176555567,0.33519087,107800.0,107790.0,0.1405396]
[1762176556368,0.22147071,107800.0,107790.0,0.1405396]
[1762176556569,0.33519087,107800.0,107790.0,0.1405396]
[1762176560471,0.69599087,107800.0,107790.0,0.04775]
[1762176562174,0.69599087,107800.0,107790.0,0.02567]
[1762176563268,0.69599087,107800.0,107790.0,0.003]
[1762176563474,0.05706,107790.0,107780.0,0.32076]
[1762176563667,0.05706,107790.0,107780.0,0.36551]
[1762176563668,0.66676064,107790.0,107780.0,0.36551]
[1762176565374,0.67176064,107790.0,107780.0,0.36551]
[1762176565872,0.67176064,107790.0,107780.0,0.4583082]
[1762176567175,0.67176064,107790.0,107780.0,0.36551]
[1762176568482,0.67176064,107790.0,107780.0,0.4583082]
[1762176569071,0.67176064,107790.0,107780.0,0.50830628]
[1762176569272,0.68176064,107790.0,107780.0,0.51030628]
[1762176570271,0.68176064,107790.0,107780.0,0.41750808]
[1762176570484,0.68176064,107790.0,107780.0,0.36751]
[1762176571876,0.68176064,107790.0,107780.0,0.34543]
[1762176572577,0.68176064,107790.0,107780.0,0.36829]
[1762176573070,0.68176064,107790.0,107780.0,0.04753]
[1762176573277,0.68176064,107790.0,107780.0,0.02467]
[1762176573480,0.70665402,107790.0,107780.0,0.02467]
[1762176575182,0.70665402,107790.0,107780.0,0.002]
[1762176575678,0.82037418,107790.0,107780.0,0.002]
[1762176575874,0.70665402,107790.0,107780.0,0.002]
[1762176576076,0.73966786,107790.0,107780.0,0.002]
[1762176576278,0.70665402,107790.0,107780.0,0.002]
[1762176576576,0.04469,107770.0,107760.0,0.49792078]
[1762176576878,0.28497032,107770.0,107760.0,0.52078078]
[1762176577770,0.17125016,107770.0,107760.0,0.52078078]
[1762176577974,0.17425016,107770.0,107760.0,0.52178078]
[1762176578280,0.17425016,107770.0,107760.0,0.88258078]
[1762176578583,0.16141016,107770.0,107760.0,0.88258078]
[1762176579680,0.16141016,107770.0,107760.0,0.52178078]
[1762176580081,0.16341016,107770.0,107760.0,0.52178078]
[1762176580282,0.16341016,107770.0,107760.0,0.88258078]
[1762176581479,0.16341016,107770.0,107760.0,0.8325827]
[1762176582277,0.17669016,107770.0,107760.0,0.8328427]
[1762176582482,0.17669016,107770.0,107760.0,0.8199327]
[1762176582675,0.65121032,107770.0,107760.0,0.50918534]
[1762176582876,0.65121032,107770.0,107760.0,0.41637004]
[1762176584379,0.65121032,107770.0,107760.0,0.36632]
[1762176585083,0.72671184,107770.0,107760.0,0.36632]
[1762176585482,0.72671184,107770.0,107760.0,0.4591353]
[1762176586081,0.72671184,107770.0,107760.0,0.36632]
[1762176586773,0.72671184,107770.0,107760.0,0.02278]
[1762176587386,0.72671184,107770.0,107760.0,0.04564]
[1762176588081,0.72671184,107770.0,107760.0,0.1384553]
[1762176589069,0.36591184,107770.0,107760.0,0.1384553]
[1762176589985,0.16341016,107770.0,107760.0,0.1513653]
[1762176590280,0.16341016,107770.0,107760.0,0.56221534]
[1762176590484,0.16341016,107770.0,107760.0,0.20141534]
[1762176590886,0.16341016,107770.0,107760.0,0.56221534]
[1762176596595,0.16341016,107770.0,107760.0,0.20141534]
[1762176597594,0.16341016,107770.0,107760.0,0.56221534]
[1762176598082,0.16341016,107770.0,107760.0,0.88289534]
[1762176599390,0.16341016,107770.0,107760.0,0.52209534]
[1762176599598,0.27713032,107770.0,107760.0,0.42928004]
[1762176599788,0.29009032,107770.0,107760.0,0.42928004]
[1762176599987,0.29009032,107770.0,107760.0,0.52209534]
[1762176600189,0.65089032,107770.0,107760.0,0.52209534]
[1762176600385,0.29009032,107770.0,107760.0,0.52209534]
[1762176601494,0.27713032,107770.0,107760.0,0.88289534]
[1762176602094,0.27713032,107770.0,107760.0,0.52209534]
[1762176603403,0.04969,107770.0,107760.0,0.52209534]
[1762176603700,0.27713032,107770.0,107760.0,0.88289534]
[1762176604685,0.27713032,107770.0,107760.0,0.52209534]
[1762176605286,0.04920258,107770.0,107760.0,0.88289534]
[1762176605598,0.11872016,107770.0,107760.0,1.01332944]
[1762176606195,0.005,107770.0,107760.0,1.01332944]
[1762176606393,0.11372016,107780.0,107770.0,0.1445167]
[1762176606594,0.11372016,107780.0,107770.0,0.57208068]
[1762176608300,0.11872016,107780.0,107770.0,0.57408068]
[1762176608501,0.12172016,107780.0,107770.0,0.57408068]
[1762176608799,0.12172016,107780.0,107770.0,0.5073167]
[1762176610199,0.12172016,107780.0,107770.0,0.62103686]
[1762176610403,0.10107901,107790.0,107780.0,0.1356481]
[1762176610614,0.15611291,107800.0,107790.0,0.1485494]
[1762176611110,0.15611291,107800.0,107790.0,0.19858329]
[1762176611307,0.15611291,107800.0,107790.0,0.1485494]
[1762176611511,0.43174143,107820.0,107810.0,0.02121]
[1762176611512,0.04767759,107820.0,107810.0,0.02121]
[1762176611706,0.15879901,107830.0,107820.0,0.1490136]
[1762176611908,0.07767625,107830.0,107820.0,0.1490136]
[1762176612110,0.15727984,107830.0,107820.0,0.1490136]
[1762176613218,0.15727984,107830.0,107820.0,0.5098136]
[1762176615020,0.05620083,107830.0,107820.0,0.5098136]
[1762176615216,0.17123984,107830.0,107820.0,0.5098136]
[1762176615421,0.17423984,107830.0,107820.0,0.5108136]
[1762176617112,0.06020083,107830.0,107820.0,0.5108136]
[1762176617313,0.16127984,107830.0,107820.0,0.5108136]
[1762176621121,0.06020083,107830.0,107820.0,0.5108136]
[1762176621326,0.16127984,107830.0,107820.0,0.5108136]
[1762176623125,0.06020083,107830.0,107820.0,0.5108136]
[1762176623430,0.16127984,107830.0,107820.0,0.5108136]
[1762176625033,0.13922984,107830.0,107820.0,0.5108136]
[1762176625220,0.11651984,107830.0,107820.0,0.5108136]
[1762176626225,0.01544083,107830.0,107820.0,0.5108136]
[1762176627435,0.02614,107850.0,107840.0,0.1493965]
[1762176627625,0.12721901,107850.0,107840.0,0.8306765]
[1762176628230,0.02614,107850.0,107840.0,0.8306765]
[1762176628428,0.37376,107870.0,107840.0,0.8306765]
[1762176628727,0.15868901,107870.0,107860.0,0.1498693]
[1762176628921,0.15868901,107870.0,107860.0,0.36422]
[1762176629126,0.04465,107840.0,107830.0,0.5101989]
[1762176629327,0.14572901,107840.0,107830.0,0.8306789]
[1762176630630,0.14772901,107840.0,107830.0,0.8306789]
[1762176631024,0.04665,107840.0,107830.0,0.8306789]
[1762176631227,0.10307901,107840.0,107830.0,0.8306789]
[1762176631723,0.002,107840.0,107830.0,0.8306789]
[1762176633633,0.002,107840.0,107830.0,1.0625189]
[1762176634733,0.10707901,107850.0,107840.0,0.1473964]
[1762176634936,0.006,107850.0,107840.0,0.5081964]
[1762176635136,0.15172901,107850.0,107840.0,0.5081964]
[1762176635738,0.17723027,107850.0,107840.0,0.4972864]
[1762176636733,0.18023027,107850.0,107840.0,0.5081964]
[1762176637239,0.17423027,107850.0,107840.0,0.5081964]
[1762176638043,0.16159027,107850.0,107840.0,0.5081964]
[1762176638237,0.06051126,107850.0,107840.0,0.5081964]
[1762176638440,0.12494027,107850.0,107840.0,0.5101964]
[1762176638740,0.16959027,107850.0,107840.0,0.5101964]
[1762176639538,0.02386126,107850.0,107840.0,0.5101964]
[1762176640436,0.51916901,107870.0,107860.0,0.136469]
[1762176640738,0.17983208,107870.0,107860.0,0.136469]
[1762176640934,0.17983208,107870.0,107860.0,0.145329]
[1762176641438,0.03579763,107870.0,107860.0,0.506129]
[1762176642338,0.004,107870.0,107860.0,0.507129]
[1762176642537,0.04865,107870.0,107860.0,0.507129]
[1762176642739,0.04965,107870.0,107860.0,0.507129]
[1762176642936,0.16336901,107870.0,107860.0,0.498269]
[1762176644339,0.17594083,107870.0,107860.0,0.40554]
[1762176644543,0.17594083,107870.0,107860.0,0.1374689]
[1762176644941,0.53674083,107870.0,107860.0,0.1374689]
[1762176645142,0.53674083,107870.0,107860.0,0.04474]
[1762176645643,0.53674083,107870.0,107860.0,0.1374689]
[1762176646338,0.53674083,107870.0,107860.0,0.04474]
[1762176646942,0.53674083,107870.0,107860.0,0.1374689]
[1762176647239,0.16330083,107870.0,107860.0,0.1463289]
[1762176647445,0.53674083,107870.0,107860.0,0.1374689]
[1762176648146,0.53674083,107870.0,107860.0,0.04474]
[1762176648345,0.55702968,107870.0,107860.0,0.04774]
[1762176648540,0.55402968,107870.0,107860.0,0.01]
[1762176649341,0.05729,107860.0,107850.0,0.4568371]
[1762176649543,0.15536901,107860.0,107850.0,0.4568371]
[1762176649739,0.15536901,107860.0,107850.0,0.3641]
[1762176650046,0.05729,107850.0,107840.0,0.0219]
[1762176650343,0.15836901,107850.0,107840.0,0.0219]
[1762176650645,0.05729,107840.0,107830.0,0.36406]
[1762176650950,0.62024802,107840.0,107830.0,0.36406]
[1762176651249,0.05729,107830.0,107820.0,0.1365006]
[1762176651444,0.15836901,107830.0,107820.0,0.1365006]
[1762176651646,0.15636901,107830.0,107820.0,0.1365006]
[1762176652344,0.23390932,107830.0,107820.0,0.1385006]
[1762176652847,0.23490932,107830.0,107820.0,0.5140106]
[1762176653050,0.22226932,107830.0,107820.0,0.5140106]
[1762176653748,0.23490932,107830.0,107820.0,0.5140106]
[1762176653947,0.23490932,107830.0,107820.0,0.5003006]
[1762176654148,0.23490932,107830.0,107820.0,0.1395006]
[1762176656546,0.001,107830.0,107820.0,0.1533306]
[1762176656750,0.001,107830.0,107820.0,0.56416449]
[1762176658851,0.02243,107830.0,107820.0,0.56416449]
[1762176659550,0.001,107830.0,107820.0,0.56416449]
[1762176660048,0.02243,107830.0,107820.0,0.56416449]
[1762176660253,0.04359,107830.0,107820.0,0.56416449]
[1762176661146,0.05671,107830.0,107820.0,0.56416449]
[1762176661349,0.23532932,107830.0,107820.0,0.55033449]
[1762176661748,0.23532932,107830.0,107820.0,0.56416449]
[1762176663457,0.04359,107830.0,107820.0,0.56416449]
[1762176663851,0.02243,107830.0,107820.0,0.56416449]
[1762176664252,0.001,107830.0,107820.0,0.56416449]
[1762176665158,0.001,107830.0,107820.0,0.58089458]
[1762176665342,0.22120932,107850.0,107840.0,0.1494762]
[1762176665549,0.04259,107850.0,107840.0,0.5102762]
[1762176666250,0.04259,107850.0,107840.0,0.56018209]
[1762176666654,0.06171,107850.0,107840.0,0.54939209]
[1762176666852,0.04859,107850.0,107840.0,0.5112762]
[1762176667054,0.05059,107850.0,107840.0,0.56118209]
[1762176667943,0.06371,107850.0,107840.0,0.56118209]
[1762176668148,0.24232932,107850.0,107840.0,0.54939209]
[1762176668558,0.24232932,107850.0,107840.0,0.4994862]
[1762176668758,0.24232932,107850.0,107840.0,0.5112762]
[1762176669255,0.24232932,107850.0,107840.0,0.4994862]
[1762176669561,0.23632932,107850.0,107840.0,0.4984862]
[1762176669755,0.23532932,107850.0,107840.0,0.5044862]
[1762176669957,0.23532932,107850.0,107840.0,0.5064862]